bitfinex/quotes_ETHUSD_20220731
["timestamp","ask_amount","ask_price","bid_price","bid_amount"]
[1659239396658,3.93693067,1693.5,1693.0,2.91711718]
[1659239397561,0.33693067,1693.5,1693.1,2.9058304]
[1659239397933,3.3957,1693.6,1693.2,6.39804672]
[1659239398136,3.65491187,1693.8,1693.3,2.89804672]
[1659239398137,3.21171187,1693.8,1693.3,2.89804672]
[1659239398467,5.95281187,1693.8,1693.4,0.00778368]
[1659239398968,5.95281187,1693.8,1693.3,2.89804672]
[1659239398969,5.9493,1693.8,1693.3,2.89804672]
[1659239399523,5.9493,1693.8,1693.4,0.01906616]
[1659239402480,5.9493,1693.8,1693.4,0.01635099]
[1659239402684,6.2493,1693.8,1693.4,0.01635099]
[1659239403664,6.2493,1693.8,1693.3,2.89804672]
[1659239405699,6.2493,1693.8,1693.4,0.15307839]
[1659239406104,3.4803,1693.9,1693.4,6.55112511]
[1659239406308,3.4803,1693.9,1693.6,0.15307839]
[1659239406469,2.8767,1694.0,1693.6,3.05112511]
[1659239407191,3.99640194,1694.2,1693.7,2.89804672]
[1659239407192,0.63693067,1694.1,1693.7,2.89804672]
[1659239407524,0.33693067,1694.1,1693.7,2.89804672]
[1659239407674,0.33693067,1694.1,1693.6,0.15307839]
[1659239407675,0.33693067,1694.1,1693.6,2.91702545]
[1659239408199,0.63693067,1694.1,1693.6,0.01897873]
[1659239409075,0.63693067,1694.1,1693.8,0.80921382]
[1659239409276,0.04692161,1694.0,1693.8,0.80921382]
[1659239409522,7.33693067,1693.9,1693.8,0.80921382]
[1659239409836,10.93693067,1693.9,1693.8,0.78715776]
[1659239410685,3.93693067,1693.9,1693.8,0.78715776]
[1659239410887,0.63693067,1693.9,1693.8,0.78715776]
[1659239419904,10.198,1694.3,1693.8,3.68520448]
[1659239420056,3.5413,1694.3,1693.9,9.71784332]
[1659239420261,11.5034313,1694.4,1694.1,3.5]
[1659239420490,11.5034313,1694.4,1694.2,3.68520448]
[1659239420654,0.0034313,1694.4,1694.2,3.68520448]
[1659239421160,13.86,1694.7,1694.2,3.68520448]
[1659239421382,11.5,1694.7,1694.2,3.68520448]
[1659239421591,9.2822,1694.8,1694.2,3.68520448]
[1659239421991,9.5822,1694.8,1694.2,3.70309295]
[1659239422303,9.8822,1694.8,1694.2,3.70309295]
[1659239423514,10.21913067,1694.8,1694.2,3.70309295]
[1659239425584,10.21913067,1694.8,1694.2,2.91593519]
[1659239425825,10.21913067,1694.8,1694.5,0.78715776]
[1659239426186,7.30253067,1694.8,1694.5,0.78715776]
[1659239427731,7.30253067,1694.8,1694.5,0.80488349]
[1659239429713,3.0,1694.7,1694.5,0.80488349]
[1659239430090,0.24692161,1694.6,1694.5,0.80488349]
[1659239431810,0.24692161,1694.6,1694.5,0.78788349]
[1659239432047,0.24692161,1694.6,1694.1,0.05]
[1659239432048,7.82117485,1694.5,1694.1,0.05]
[1659239432254,9.18256833,1694.4,1693.8,0.05]
[1659239432453,12.61136833,1694.4,1693.6,0.05]
[1659239432654,18.78492578,1694.4,1693.6,2.89804672]
[1659239432957,0.04692161,1694.1,1693.6,2.89804672]
[1659239433157,0.04692161,1693.7,1693.6,2.89804672]
[1659239433927,3.38385228,1694.0,1693.5,10.93554672]
[1659239434261,3.98385228,1694.0,1693.5,10.93554672]
[1659239435057,3.98385228,1694.0,1693.5,8.0375]
[1659239435628,3.98385228,1694.0,1693.5,8.05470881]
[1659239436519,3.98385228,1694.0,1693.5,8.07353024]
[1659239436847,3.98385228,1694.0,1693.5,10.97157696]
[1659239437018,3.93693067,1694.0,1693.5,10.97157696]
[1659239437814,3.98385228,1694.0,1693.6,2.89804672]
[1659239438059,3.93693067,1694.0,1693.6,6.21862689]
[1659239438242,0.93693067,1694.0,1693.6,6.21862689]
[1659239438471,0.63693067,1694.0,1693.6,6.21862689]
[1659239440651,0.63693067,1694.0,1693.6,2.89804672]
[1659239442655,0.33693067,1694.0,1693.6,2.89804672]
[1659239442850,0.33693067,1694.0,1693.6,3.34134672]
[1659239444582,0.33693067,1694.0,1693.6,2.89804672]
[1659239444951,6.402,1694.1,1693.7,0.00778368]
[1659239445153,3.7644,1694.1,1693.7,0.00778368]
[1659239445353,3.7644,1694.1,1693.7,0.04477521]
[1659239449409,7.2644,1694.1,1693.7,0.04477521]
[1659239449620,3.7644,1694.1,1693.7,0.04477521]
[1659239450410,3.76061296,1694.1,1693.7,0.04477521]
[1659239451423,3.72915881,1694.1,1693.7,0.04477521]
[1659239458742,3.72915881,1694.1,1693.7,2.94282193]
[1659239464192,3.4644,1694.1,1693.7,2.94282193]
[1659239472465,3.7644,1694.1,1693.7,2.94282193]
[1659239472754,3.7644,1694.1,1693.6,0.01715312]
[1659239472755,0.04692161,1693.9,1693.6,0.01715312]
[1659239473258,0.04692161,1693.7,1693.4,0.0171889]
[1659239474011,0.04337503,1693.7,1693.4,0.0171889]
[1659239475062,0.63237503,1693.5,1693.4,0.0171889]
[1659239476071,0.63237503,1693.5,1693.0,0.06459522]
[1659239476239,0.63237503,1693.5,1693.1,2.89804672]
[1659239476648,0.09337503,1693.7,1693.1,2.89804672]
[1659239476984,0.6803057,1693.7,1693.1,2.89804672]
[1659239477880,0.6803057,1693.7,1693.1,2.92086416]
[1659239478044,0.6803057,1693.7,1693.2,2.89804672]
[1659239478456,0.3,1693.7,1693.3,0.04739929]
[1659239478663,7.0272,1693.8,1693.3,2.94544601]
[1659239480344,0.04337503,1693.7,1693.3,2.94544601]
[1659239484177,7.36413067,1693.8,1693.3,2.94544601]
[1659239484852,0.09337503,1694.0,1693.5,3.5]
[1659239484853,0.05,1694.0,1693.5,3.5]
[1659239485059,6.1726,1694.1,1693.6,6.22660652]
[1659239485414,6.1726,1694.1,1693.7,2.89804672]
[1659239486768,0.04337503,1693.7,1693.4,0.05]
[1659239486969,0.04337503,1693.7,1693.1,0.05]
[1659239487348,0.04337503,1693.4,1693.0,7.9993]
[1659239487464,0.04337503,1693.4,1693.0,10.89734672]
[1659239487663,7.1038,1693.8,1693.1,9.71882284]
[1659239487865,7.1038,1693.8,1693.2,5.39804672]
[1659239488300,7.1038,1693.8,1693.3,0.04363591]
[1659239488500,7.1038,1693.8,1693.3,2.94168263]
[1659239488961,7.1038,1693.8,1693.4,2.89804672]
[1659239489162,6.3606,1693.8,1693.4,2.89804672]
[1659239489404,6.3606,1693.8,1693.5,0.00778368]
[1659239489608,6.3606,1693.8,1693.5,2.94167839]
[1659239489776,0.4932,1694.1,1693.6,2.89804672]
[1659239489978,3.1996,1694.3,1693.6,2.89804672]
[1659239489979,6.62257948,1694.2,1693.6,2.89804672]
[1659239490180,6.92257948,1694.2,1693.6,2.9058304]
[1659239490510,7.25951015,1694.2,1693.7,2.89804672]
[1659239490814,7.25603067,1694.2,1693.7,2.89804672]
[1659239496233,3.0,1694.1,1693.7,2.89804672]
[1659239497907,7.69913067,1694.2,1693.7,2.89804672]
[1659239498154,7.69913067,1694.2,1693.8,3.50778368]
[1659239498155,6.3191,1694.2,1693.8,3.50778368]
[1659239498989,6.3191,1694.2,1693.8,0.00778368]
[1659239508304,6.3191,1694.2,1693.8,0.00441544]
[1659239511545,0.04337503,1693.9,1693.5,8.0406]
[1659239511746,0.04337503,1693.7,1693.3,2.7656]
[1659239511946,0.04337503,1693.7,1693.4,2.89804672]
[1659239514254,0.04337503,1693.7,1693.3,0.01720997]
[1659239517088,0.04337503,1693.7,1693.3,0.01433297]
[1659239519297,0.04625203,1693.7,1693.3,0.01433297]
[1659239519479,0.04337503,1693.5,1693.3,0.01433297]
[1659239519812,0.04337503,1693.5,1693.0,3.5]
[1659239519974,0.04337503,1693.5,1693.1,2.89804672]
[1659239521221,0.04337503,1693.5,1693.1,2.9081093]
[1659239521422,0.04337503,1693.5,1693.2,2.89804672]
[1659239524433,3.64625203,1693.7,1693.2,2.89804672]
[1659239526141,7.14625203,1693.7,1693.2,2.89804672]
[1659239526295,3.64625203,1693.7,1693.2,2.89804672]
[1659239531331,3.602877,1693.7,1693.2,2.89804672]
[1659239532562,7.102877,1693.7,1693.2,2.89804672]
[1659239532765,3.602877,1693.7,1693.2,2.89804672]
[1659239532970,3.602877,1693.7,1693.2,2.90246215]
[1659239532971,0.002877,1693.7,1693.2,2.90246215]
[1659239533136,0.002877,1693.7,1693.3,6.39804672]
[1659239536441,0.002877,1693.7,1693.4,2.89804672]
[1659239536787,0.002877,1693.7,1693.3,2.89804672]
[1659239540638,0.00042215,1693.7,1693.3,2.89804672]
[1659239542869,3.50042215,1693.7,1693.2,2.91252414]
[1659239543075,0.00042215,1693.7,1693.2,2.91252414]
[1659239543641,3.74372215,1693.7,1693.2,2.91252414]
[1659239544075,3.30042215,1693.7,1693.2,2.91252414]
[1659239546485,0.00042215,1693.7,1693.2,6.41252414]
[1659239548786,0.00042215,1693.7,1693.2,2.91252414]
[1659239552751,0.00042215,1693.7,1693.2,6.91252414]
[1659239556604,3.92159891,1693.8,1693.3,2.89804672]
[1659239556955,3.92159891,1693.8,1693.4,3.32577954]
[1659239557241,3.92159891,1693.8,1693.4,6.22382626]
[1659239558440,3.92159891,1693.8,1693.4,2.90246215]
[1659239564534,3.5813,1693.8,1693.4,2.90246215]
[1659239566161,3.5813,1693.8,1693.4,3.05908712]
[1659239570739,7.46497394,1693.8,1693.3,0.01239405]
[1659239571176,4.40817394,1693.8,1693.3,0.01239405]
[1659239572750,4.36479891,1693.8,1693.3,0.01239405]
[1659239573756,3.92159891,1693.8,1693.4,0.00441543]
[1659239578529,3.92159891,1693.8,1693.4,2.90246215]
[1659239578688,3.5813,1693.8,1693.4,2.90246215]
[1659239582337,0.05,1694.0,1693.6,7.0]
[1659239582519,6.4192,1694.1,1694.0,0.00203425]
[1659239583492,6.7192,1694.1,1694.0,0.00203425]
[1659239587508,6.7192,1694.1,1693.8,3.32116809]
[1659239587722,0.00080177,1694.0,1693.8,3.32116809]
[1659239596631,0.62797101,1694.0,1693.8,3.32116809]
[1659239597840,0.62797101,1694.0,1693.8,6.21921481]
[1659239598042,0.00080177,1694.0,1693.8,6.21921481]
[1659239600339,0.00080177,1694.0,1693.9,2.89804672]
[1659239600982,0.00080177,1694.0,1693.9,2.91485181]
[1659239602041,0.00080177,1694.0,1693.8,3.32116809]
[1659239602295,0.00080177,1694.0,1693.8,6.21921481]
[1659239608083,0.00080177,1694.0,1693.8,2.89804672]
[1659239615051,0.00080177,1694.0,1693.7,17.57211699]
[1659239615292,0.34110068,1694.0,1693.6,0.00441543]
[1659239615490,0.34110068,1694.0,1693.6,2.90246215]
[1659239615714,0.34110068,1694.0,1693.7,2.89804672]
[1659239616123,0.00080177,1694.0,1693.7,2.89804672]
[1659239616276,0.00080177,1694.0,1693.8,0.00441543]
[1659239616478,0.00080177,1694.0,1693.8,6.22343424]
[1659239619772,0.00080177,1694.0,1693.8,6.38005921]
[1659239620546,0.00080177,1694.0,1693.8,6.22343424]
[1659239620916,0.59512631,1694.0,1693.8,6.22343424]
[1659239622155,0.00080177,1694.0,1693.8,6.22343424]
[1659239623330,0.00080177,1694.0,1693.9,2.89804672]
[1659239629292,2.31670177,1694.3,1693.9,2.89804672]
[1659239637113,3.09639891,1694.4,1693.9,2.89804672]
[1659239637114,0.34029891,1694.4,1693.9,2.89804672]
[1659239637298,0.05,1694.6,1694.1,0.15662497]
[1659239637523,9.66002269,1694.8,1694.2,3.5]
[1659239637722,9.6065,1694.8,1694.1,3.05467169]
[1659239637897,9.6065,1694.8,1694.0,3.55]
[1659239637898,3.5,1694.7,1694.0,0.05]
[1659239638104,3.5,1694.7,1693.9,1.8772]
[1659239638105,3.274,1694.6,1693.9,1.9272]
[1659239638304,3.9431,1694.5,1693.9,4.77524672]
[1659239638737,3.61429891,1694.4,1693.9,4.77524672]
[1659239638904,3.61429891,1694.4,1693.9,2.89804672]
[1659239640213,4.21429891,1694.4,1693.9,2.89804672]
[1659239648651,4.21429891,1694.4,1694.1,3.5]
[1659239648652,3.274,1694.4,1694.1,3.5]
[1659239648815,2.9852,1694.6,1694.2,2.89804672]
[1659239649493,2.9852,1694.6,1694.2,2.90246215]
[1659239656335,2.9852,1694.6,1694.0,1.8044]
[1659239656537,6.137,1694.6,1694.1,2.89804672]
[1659239660241,0.04337503,1694.4,1693.9,0.05]
[1659239660458,0.04337503,1694.4,1693.9,2.89804672]
[1659239660459,3.58067503,1694.4,1693.9,2.89804672]
[1659239660668,3.88067503,1694.4,1693.9,2.89804672]
[1659239661238,3.8373,1694.4,1693.9,2.89804672]
[1659239664088,4.17759891,1694.4,1693.9,2.89804672]
[1659239666173,4.17759891,1694.4,1693.8,12.89205254]
[1659239666923,4.17759891,1694.4,1693.9,2.89804672]
[1659239667130,4.17759891,1694.4,1694.0,0.01680436]
[1659239667606,3.57759891,1694.4,1694.0,0.01680436]
[1659239667980,3.2373,1694.4,1694.0,0.01680436]
[1659239668881,3.2373,1694.4,1694.0,2.91485108]
[1659239669084,3.2373,1694.4,1694.1,2.89804672]
[1659239671113,0.05,1694.7,1694.1,2.89804672]
[1659239671300,3.2107,1694.9,1694.7,0.00312452]
[1659239671638,3.0607,1694.9,1694.7,0.00312452]
[1659239671857,0.3,1695.0,1694.7,0.00312452]
[1659239672047,0.30343852,1695.0,1694.7,2.90117124]
[1659239672249,0.30343852,1695.0,1694.8,2.89804672]
[1659239672427,0.30343852,1695.0,1694.8,6.21608163]
[1659239672623,0.30343852,1695.0,1694.9,9.90246215]
[1659239672821,0.3,1695.0,1694.9,12.90246215]
[1659239673051,0.3,1695.0,1694.9,10.44731543]
[1659239673214,0.3,1695.0,1694.9,3.00441543]
[1659239674113,0.3,1695.0,1694.9,5.90246215]
[1659239674314,0.3,1695.0,1694.9,6.34536215]
[1659239674530,0.3,1695.0,1694.9,6.50198712]
[1659239675013,0.3,1695.0,1694.8,7.6694]
[1659239675240,0.3,1695.0,1694.7,0.00312452]
[1659239676044,0.3,1695.0,1694.7,2.90117124]
[1659239677259,0.3,1695.0,1694.8,2.89804672]
[1659239678033,0.3,1695.0,1694.7,2.90117124]
[1659239679686,0.3,1695.0,1694.8,0.00441543]
[1659239680064,0.3,1695.0,1694.8,2.90246215]
[1659239680290,0.3,1695.0,1694.9,2.89804672]
[1659239682292,0.3,1695.0,1694.9,2.90170252]
[1659239687032,0.3,1695.0,1694.9,3.05832749]
[1659239688233,0.3,1695.0,1694.9,0.16028077]
[1659239688922,0.3,1695.0,1694.9,0.0036558]
[1659239689312,0.3,1695.0,1694.9,3.53570252]
[1659239693448,0.2961622,1695.0,1694.9,3.53570252]
[1659239696920,0.2961622,1695.0,1694.8,0.00441543]
[1659239697090,0.2961622,1695.0,1694.8,2.90246215]
[1659239698991,0.2961622,1695.0,1694.9,2.89804672]
[1659239707274,0.2961622,1695.0,1694.9,2.90604672]
[1659239709169,8.597,1694.9,1694.7,0.00312452]
[1659239709396,8.597,1694.9,1694.7,0.00012452]
[1659239709397,7.54337503,1694.8,1694.7,0.00012452]
[1659239709711,8.48637503,1694.8,1694.7,0.00012452]
[1659239709908,11.04747503,1694.8,1694.7,0.00012452]
[1659239710078,14.54747503,1694.8,1694.7,0.00012452]
[1659239710821,17.32767503,1694.8,1694.7,0.00012452]
[1659239711501,13.82767503,1694.8,1694.7,0.00012452]
[1659239711705,9.5843,1694.8,1694.7,0.00012452]
[1659239712475,9.1413,1694.8,1694.7,0.00012452]
[1659239712677,9.72497394,1694.8,1694.7,0.00012452]
[1659239712876,9.52497394,1694.8,1694.7,0.00012452]
[1659239713208,9.48159891,1694.8,1694.7,0.00012452]
[1659239715217,3.64029891,1694.8,1694.7,2.89817124]
[1659239715420,0.3,1694.9,1694.7,2.89817124]
[1659239715574,3.8961622,1695.0,1694.7,2.89817124]
[1659239716219,3.8961622,1695.0,1694.8,2.89804672]
[1659239716220,0.2961622,1695.0,1694.8,2.89804672]
[1659239716381,0.2961622,1695.0,1694.8,6.21627728]
[1659239716717,0.2961622,1695.0,1694.9,2.89804672]
[1659239717847,0.2961622,1695.0,1694.8,3.31823056]
[1659239717848,0.2961622,1695.0,1694.8,6.21627728]
[1659239717994,0.2961622,1695.0,1694.8,2.89804672]
[1659239720855,0.2961622,1695.0,1694.9,0.15662497]
[1659239722502,0.2961622,1695.0,1694.9,3.05467169]
[1659239722737,0.2961622,1695.0,1694.7,11.93038313]
[1659239722943,3.2585,1695.3,1694.7,11.93038313]
[1659239722944,0.05,1695.3,1694.9,17.89804672]
[1659239723255,0.00366661,1695.5,1694.8,6.665]
[1659239723256,0.05,1695.5,1695.0,2.90246215]
[1659239723543,3.9927,1695.7,1695.0,2.90246215]
[1659239723756,3.50366655,1695.6,1695.0,2.90246215]
[1659239724320,4.10366655,1695.6,1695.0,0.00441543]
[1659239724558,0.7428,1695.5,1695.0,0.00441543]
[1659239725555,0.3,1695.5,1695.0,0.00441543]
[1659239725765,4.2428,1695.6,1695.0,0.00441543]
[1659239725766,1.0428,1695.6,1695.0,0.00441543]
[1659239726587,1.38309891,1695.6,1695.0,0.00441543]
[1659239727596,4.88309891,1695.6,1695.0,0.00441543]
[1659239727793,6.84337503,1695.5,1694.8,0.05]
[1659239727998,0.04337503,1695.2,1694.8,2.89804672]
[1659239728894,0.34029891,1695.2,1694.8,2.89804672]
[1659239732848,0.34029891,1695.2,1694.7,2.90258667]
[1659239733561,0.34029891,1695.2,1694.8,2.89804672]
[1659239733731,0.34029891,1695.2,1694.8,6.21529926]
[1659239734049,0.34029891,1695.2,1694.9,2.89804672]
[1659239734462,0.34029891,1695.2,1694.7,0.02468138]
[1659239734759,0.34029891,1695.2,1694.7,2.9227281]
[1659239735322,0.34029891,1695.2,1694.8,6.21608163]
[1659239735535,0.34029891,1695.2,1694.9,2.89804672]
[1659239737032,6.2179,1695.4,1694.9,2.89804672]
[1659239737345,6.5179,1695.4,1694.9,2.90246215]
[1659239738507,6.5179,1695.4,1695.0,2.89804672]
[1659239739030,6.5179,1695.4,1695.0,3.05467169]
[1659239739236,5.9179,1695.4,1695.1,2.89804672]
[1659239739825,5.9179,1695.4,1695.0,2.89804672]
[1659239740038,6.25819891,1695.4,1694.9,2.90246215]
[1659239741313,6.85819891,1695.4,1694.9,2.90246215]
[1659239752538,6.90157394,1695.4,1694.9,2.90246215]
[1659239753046,6.85819891,1695.4,1694.9,2.90246215]
[1659239756373,0.04337503,1695.3,1694.9,2.90246215]
[1659239756673,0.04337503,1695.3,1694.7,0.00012452]
[1659239756674,3.54337503,1695.3,1694.7,0.00012452]
[1659239756880,0.04337503,1695.1,1694.7,2.89817124]
[1659239757039,6.5679,1695.4,1694.8,2.89804672]
[1659239757360,6.5179,1695.4,1694.8,9.71627728]
[1659239757877,6.5179,1695.4,1694.8,9.72069271]
[1659239761042,6.85819891,1695.4,1694.8,9.72069271]
[1659239762084,0.007309,1695.2,1694.8,9.72069271]
[1659239764010,0.007309,1695.2,1694.8,6.22069271]
[1659239764365,0.007309,1695.2,1694.8,9.72069271]
[1659239765067,0.007309,1695.2,1694.8,6.22069271]
[1659239768463,0.007309,1695.2,1694.8,9.72069271]
[1659239768811,0.007309,1695.2,1694.9,2.89804672]
[1659239776225,0.007309,1695.2,1695.0,3.6610404]
[1659239776471,0.00355081,1695.2,1695.1,2.89804672]
[1659239779460,11.50355081,1695.6,1695.1,2.89804672]
[1659239779756,3.5,1695.7,1695.1,3.05467169]
[1659239779960,3.50351969,1695.7,1695.2,2.89804672]
[1659239780562,4.10351969,1695.7,1695.2,2.89804672]
[1659239780725,4.1,1695.7,1695.2,2.89804672]
[1659239781568,0.3,1695.7,1695.2,2.89804672]
[1659239781740,6.5,1695.7,1695.2,2.89804672]
[1659239782180,3.0,1695.7,1695.2,2.89804672]
[1659239782392,3.0,1695.7,1695.3,0.1610404]
[1659239782541,3.0,1695.7,1695.3,3.05908712]
[1659239784576,17.4909,1695.8,1695.4,2.89804672]
[1659239784778,17.4909,1695.8,1695.5,0.00441543]
[1659239784779,14.525,1695.8,1695.5,0.00441543]
[1659239784985,3.025,1695.8,1695.5,2.90246215]
[1659239786383,3.6,1696.0,1695.6,2.89804672]
[1659239787178,3.5,1696.0,1695.6,2.89804672]
[1659239788202,3.5,1696.0,1695.5,2.90246215]
[1659239788481,7.4427,1696.0,1695.5,2.90246215]
[1659239788818,0.04337503,1695.7,1695.3,0.05]
[1659239789118,0.4428,1695.6,1695.0,0.05]
[1659239789290,0.4428,1695.6,1695.0,2.89804672]
[1659239789682,0.38367394,1695.5,1695.0,2.89804672]
[1659239789899,0.68367394,1695.5,1695.0,2.89804672]
[1659239793509,0.64029891,1695.5,1695.1,3.32205911]
[1659239793707,0.34029891,1695.5,1695.2,2.89804672]
[1659239794424,0.34029891,1695.5,1695.1,6.22010583]
[1659239794627,0.34029891,1695.5,1695.1,2.90246215]
[1659239795438,3.35,1695.7,1695.4,3.5]
[1659239795439,0.05,1695.7,1695.4,3.5]
[1659239795643,0.446164,1696.0,1695.5,2.90246215]
[1659239795644,0.053464,1696.0,1695.5,2.90246215]
[1659239795814,0.003464,1696.0,1695.6,2.89804672]
[1659239796370,5.9834,1696.1,1695.6,2.89804672]
[1659239796510,3.009,1696.1,1695.6,2.89804672]
[1659239797519,3.609,1696.1,1695.6,2.89804672]
[1659239797743,3.609,1696.1,1695.5,0.00441543]
[1659239797744,0.04337503,1695.8,1695.5,0.00441543]
[1659239797956,0.48607503,1695.8,1695.5,0.00441543]
[1659239798161,3.9864,1695.9,1695.5,0.00441543]
[1659239799124,3.5437,1695.9,1695.5,0.00441543]
[1659239799946,3.5437,1695.9,1695.5,2.90246215]
[1659239800141,0.34029891,1696.0,1695.6,2.89804672]
[1659239800359,0.34029891,1696.0,1695.6,6.21529926]
[1659239800543,0.34029891,1696.0,1695.7,2.89593267]
[1659239807857,3.309,1696.1,1695.7,2.89593267]
[1659239808061,3.009,1696.1,1695.8,3.32069053]
[1659239808289,3.009,1696.1,1695.8,6.21873725]
[1659239808488,14.1273,1696.3,1695.8,6.21873725]
[1659239808691,11.3647,1696.3,1695.8,6.21873725]
[1659239810658,6.6065,1696.4,1695.9,2.89804672]
[1659239810856,6.1639,1696.4,1696.0,0.00441543]
[1659239811056,6.1639,1696.4,1696.1,2.89804672]
[1659239811306,3.6,1696.5,1696.1,2.89804672]
[1659239813487,3.6,1696.5,1696.0,0.00441543]
[1659239813488,7.1,1696.5,1696.0,0.00441543]
[1659239813691,3.5,1696.4,1695.8,7.8476]
[1659239813890,0.34029891,1696.3,1695.8,10.69564672]
[1659239814865,0.38367394,1696.3,1695.8,10.69564672]
[1659239817003,0.33367394,1696.3,1695.8,10.69564672]
[1659239817362,3.63367394,1696.3,1695.8,2.89804672]
[1659239817568,0.04337503,1696.0,1695.6,0.05]
[1659239817761,0.04337503,1696.0,1695.3,0.05]
[1659239817762,1.0427,1695.9,1695.3,0.05]
[1659239818005,1.0427,1695.9,1695.4,2.89804672]
[1659239818191,1.0427,1695.9,1695.4,6.39804672]
[1659239818192,0.4427,1695.9,1695.4,6.39804672]
[1659239818454,0.04337503,1696.0,1695.5,2.89804672]
[1659239820212,13.8435,1696.1,1695.6,0.05441543]
[1659239820374,8.0266,1696.1,1695.7,2.89804672]
[1659239820579,0.3,1696.1,1695.6,3.37186353]
[1659239820808,0.04337503,1695.8,1695.6,0.05441543]
[1659239821719,0.04337503,1695.8,1695.7,2.89804672]
[1659239821903,2.959,1696.1,1695.7,6.21471272]
[1659239822101,3.259,1696.1,1695.7,6.21471272]
[1659239822337,0.04337503,1696.0,1695.7,6.21471272]
[1659239823029,3.259,1696.1,1695.7,6.21471272]
[1659239823907,3.30237503,1696.1,1695.7,6.21471272]
[1659239824106,3.259,1696.1,1695.7,6.21471272]
[1659239825975,3.30237503,1696.1,1695.7,6.21471272]
[1659239827300,3.30237503,1696.1,1695.7,2.89804672]
[1659239828391,3.30237503,1696.1,1695.6,0.05441543]
[1659239828576,7.24497503,1696.1,1695.6,0.05441543]
[1659239828800,3.74497503,1696.1,1695.6,0.05441543]
[1659239829395,0.04337503,1695.9,1695.6,0.05441543]
[1659239830002,0.04337503,1695.9,1695.3,0.05]
[1659239830212,0.04337503,1695.9,1695.4,2.89804672]
[1659239830745,0.48607503,1695.9,1695.2,0.05]
[1659239830965,0.04337503,1695.3,1695.1,0.05]
[1659239831117,0.04337503,1695.3,1694.9,8.121]
[1659239831288,0.04337503,1695.3,1695.0,2.89804672]
[1659239832732,0.04337503,1695.1,1695.0,2.89804672]
[1659239834545,0.04337503,1695.3,1695.0,2.89804672]
[1659239835645,0.04337503,1695.3,1694.9,11.07346215]
[1659239836081,0.04337503,1695.3,1695.0,2.89804672]
[1659239836943,0.04337503,1695.3,1695.0,2.84804672]
[1659239837583,3.93367394,1695.5,1695.0,2.84804672]
[1659239837924,0.04337503,1695.3,1695.0,2.84804672]
[1659239839039,0.04337503,1695.0,1694.7,0.05]
[1659239839238,0.04337503,1695.0,1694.4,3.0392]
[1659239839528,0.04337503,1694.7,1694.5,2.89804672]
[1659239839699,0.09337503,1695.0,1694.5,2.89804672]
[1659239839885,0.04337503,1695.0,1694.5,2.89804672]
[1659239841050,0.65751271,1694.7,1694.5,2.89804672]
[1659239842662,0.09337503,1695.0,1694.5,2.92420249]
[1659239842847,0.04337503,1695.0,1694.5,2.92420249]
[1659239843173,0.04337503,1694.8,1694.5,0.02615577]
[1659239843562,3.54337503,1694.8,1694.5,0.02615577]
[1659239843790,0.83237503,1694.6,1694.5,0.02615577]
[1659239844091,3.83607503,1694.6,1694.5,0.02615577]
[1659239844245,13.35357503,1694.6,1694.1,0.05]
[1659239844444,3.9431,1694.5,1693.9,0.05]
[1659239844696,0.04337503,1693.9,1693.7,0.05]
[1659239844920,0.04337503,1693.9,1693.3,11.5]
[1659239844921,0.04337503,1693.9,1693.3,20.0712]
[1659239845090,0.04337503,1693.9,1693.3,8.0278]
[1659239845583,0.04337503,1693.9,1693.3,8.08221543]
[1659239845785,4.0932,1694.0,1693.3,8.08221543]
[1659239845786,3.65,1694.0,1693.3,8.08221543]
[1659239845997,3.6,1694.0,1693.4,3.5]
[1659239846183,0.6,1694.0,1693.5,2.89804672]
[1659239846383,3.3175,1694.1,1693.6,0.05441543]
[1659239846699,3.3175,1694.1,1693.6,2.95246215]
[1659239847985,6.8175,1694.1,1693.6,2.95246215]
[1659239848184,3.3175,1694.1,1693.6,2.95246215]
[1659239849198,0.04337503,1694.0,1693.6,2.95246215]
[1659239849534,3.3175,1694.1,1693.6,2.95246215]
[1659239850038,6.8175,1694.1,1693.6,2.9750998]
[1659239850182,3.3175,1694.1,1693.6,2.9750998]
[1659239851111,6.8175,1694.1,1693.6,2.9750998]
[1659239851315,3.3175,1694.1,1693.6,2.97942517]
[1659239858389,6.7985,1694.3,1693.7,2.89804672]
[1659239858591,6.3054,1694.3,1693.8,0.05441543]
[1659239858917,6.3054,1694.3,1693.8,6.45246215]
[1659239859069,0.05,1694.5,1693.9,3.07403108]
[1659239859267,10.8761,1694.7,1694.0,2.89804672]
[1659239859468,10.8261,1694.7,1694.0,2.95246215]
[1659239859699,10.8261,1694.7,1694.1,2.89804672]
[1659239859915,10.8261,1694.7,1694.1,2.90237082]
[1659239860808,11.11639891,1694.7,1694.1,2.90237082]
[1659239861010,3.6,1694.6,1694.1,2.90237082]
[1659239862512,3.6,1694.6,1694.2,2.89804672]
[1659239862732,3.6,1694.6,1694.2,0.05441543]
[1659239863681,6.5328,1694.6,1694.2,0.05441543]
[1659239864085,6.5328,1694.6,1694.2,0.07343787]
[1659239868262,6.5328,1694.6,1694.2,0.05441543]
[1659239869456,6.5328,1694.6,1694.1,0.02334654]
[1659239869457,0.04337503,1694.3,1694.1,0.02334654]
[1659239869662,0.04337503,1694.3,1694.1,0.01902244]
[1659239870166,0.04337503,1694.3,1694.1,0.01697552]
[1659239870965,0.04337503,1694.0,1693.7,0.05]
[1659239871123,0.04337503,1694.0,1693.7,2.95246215]
[1659239872129,0.04337503,1694.0,1693.7,2.97257677]
[1659239872528,0.04337503,1694.0,1693.7,0.07453005]
[1659239875675,0.09337503,1694.3,1693.7,0.07453005]
[1659239875858,0.04337503,1694.3,1693.7,0.07453005]
[1659239876056,0.04337503,1694.3,1693.7,0.05441543]
[1659239876442,2.96957503,1694.3,1693.7,0.05441543]
[1659239876651,3.55987394,1694.3,1693.7,0.05441543]
[1659239877278,3.55987394,1694.3,1693.8,3.34101459]
[1659239877577,3.55987394,1694.3,1693.8,3.19101459]
[1659239878033,3.55987394,1694.3,1693.8,3.04101459]
[1659239879679,3.51649891,1694.3,1693.8,3.04101459]
[1659239882382,6.444,1694.4,1693.9,2.95246215]
[1659239882585,3.444,1694.4,1694.0,2.89804672]
[1659239882767,3.144,1694.4,1694.0,2.89804672]
[1659239883387,3.144,1694.4,1694.0,2.95246215]
[1659239883985,3.444,1694.4,1694.0,2.95246215]
[1659239884174,3.744,1694.4,1694.0,2.97500218]
[1659239884375,3.144,1694.4,1694.1,0.15662497]
[1659239890001,3.144,1694.4,1694.1,0.10662497]
[1659239893605,3.144,1694.4,1694.0,2.97500218]